Workbook

Sheet Начало
B1: ЗА ТОЗИ ШАБЛОН
B2: Използвайте тази работна книга "Бюджет за събитие", за да проследявате възникналите разходи и спечелените приходи от събитие.
B3: Попълнете име на събитие и въведете данни в таблиците в работния лист "Разходи" и работния лист "Приходи".
B4: Общо разходи и Общо приходи се изчисляват автоматично.
B5: Резюме за печалбата и загубата и загубата се актуализират автоматично в работния лист "Резюме".
B6: Забележка:
B7: Допълнителни инструкции са предоставени в колона A във всеки работен лист. Този текст е скрит нарочно. За да премахнете текста, изберете колона А, след което изберете Изтрий. За да покажете текст, изберете колона A, след което променете цвета на шрифта.
B8: За да научите повече за таблиците, натиснете SHIFT и след това F10 в таблица, изберете опцията ТАБЛИЦА, след което изберете АЛТЕРНАТИВЕН ТЕКСТ.

Sheet Разходи
A1: Въведете очаквани и действителни разходи за всяка категория в съответните таблици в този работен лист. Общите разходи се изчисляват автоматично. Полезни инструкции как да използвате този работен лист, можете да намерите в клетките в тази колона. Натиснете стрелката надолу, за да започнете.
A2: Въведете име на събитие в клетка вдясно, за да персонализирате заглавието на този и на другите работни листове. | B2: Бюджет за събитие за Име на събитие
A3: Етикетът "Разходи" е в клетка G3. | G3: Разходи
A4: Етикетът "Очаквани" е в клетка G4, а етикетът "Действителни" е в клетка H4. | G4: Очаквани | H4: Действителни
A5: Етикетът за "Общо разходи" е в клетката вдясно. Общите очаквани разходи се изчисляват автоматично в клетка G5. Общите действителни разходи и лентата за данни, изобразяваща общите действителни разходи, се актуализират автоматично в клетка H5. Следващата инструкция е в клетка A7. | B5: Общо разходи | G5: =SUM(C12,C20,C26,C33,G12,G20,G25) -> 1,145.00 лв. | H5: =SUM(D12,D20,D26,D33,H12,H20,H25) -> 395.00 лв.
A7: Въведете Разходи Място в таблицата, която започва от клетката вдясно, и Разходи Почерпка в таблицата, която започва от клетка F7. Следващата инструкция е в клетка A14. | B7: Място | C7: Очаквани | D7: Действителни | F7: Почерпка | G7: Очаквани | H7: Действителни
B8: Такси за стая/зала | C8: 500.00 лв. | D8: 250.00 лв. | F8: Храна
B9: Персонал на мястото | C9: 400.00 лв. | D9: 50.00 лв. | F9: Напитки
B10: Оборудване | F10: Покривки
B11: Маси и столове | F11: Персонал и бакшиш
B12: Общо | C12: =SUBTOTAL(109,РазходиМясто[Очаквани]) -> 900.00 лв. | D12: =SUBTOTAL(109,РазходиМясто[Действителни]) -> 300.00 лв. | F12: Общо | G12: =SUBTOTAL(109,РазходиПочерпка[Очаквани]) -> 0.00 лв. | H12: =SUBTOTAL(109,РазходиПочерпка[Действителни]) -> 0.00 лв.
A14: Въведете Разходи Украса в таблицата, която започва от клетката вдясно, и Разходи Програма в таблицата, която започва от клетка F14. Следващата инструкция е в клетка A22. | B14: Украса | C14: Очаквани | D14: Действителни | F14: Програма | G14: Очаквани | H14: Действителни
B15: Цветя | C15: 200.00 лв. | D15: 50.00 лв. | F15: Изпълнители
B16: Свещи | F16: Лектори
B17: Осветление | F17: Пътувания
B18: Балони | F18: Хотел
B19: Хартиени консумативи | F19: Други
B20: Общо | C20: =SUBTOTAL(109,РазходиУкраса[Очаквани]) -> 200.00 лв. | D20: =SUBTOTAL(109,РазходиУкраса[Действителни]) -> 50.00 лв. | F20: Общо | G20: =SUBTOTAL(109,РазходиПрограма[Очаквани]) -> 0.00 лв. | H20: =SUBTOTAL(109,РазходиПрограма[Действителни]) -> 0.00 лв.
A22: Въведете Разходи Реклама в таблицата, която започва от клетката вдясно, и Разходи Награди в таблицата, която започва от клетка F22. Следващата инструкция е в клетка A28. | B22: Реклама | C22: Очаквани | D22: Действителни | F22: Награди | G22: Очаквани | H22: Действителни
B23: Графични материали | C23: 45.00 лв. | D23: 45.00 лв. | F23: Ленти/почетни значки/трофеи
B24: Копирни услуги/печат | F24: Подаръци
B25: Пощенски разходи | F25: Общо | G25: =SUBTOTAL(109,РазходиНагради[Очаквани]) -> 0.00 лв. | H25: =SUBTOTAL(109,РазходиНагради[Действителни]) -> 0.00 лв.
B26: Общо | C26: =SUBTOTAL(109,РазходиРеклама[Очаквани]) -> 45.00 лв. | D26: =SUBTOTAL(109,РазходиРеклама[Действителни]) -> 45.00 лв.
A28: Въведете Разходи Други в таблицата, която започва от клетката вдясно. | B28: Разни | C28: Очаквани | D28: Действителни
B29: Телефон
B30: Транспорт
B31: Канцеларски материали
B32: Факс услуги
B33: Общо | C33: =SUBTOTAL(109,РазходиДруги[Очаквани]) -> 0.00 лв. | D33: =SUBTOTAL(109,РазходиДруги[Действителни]) -> 0.00 лв.

Sheet Приходи
A1: Въведете очаквани и действителни приходи за всяка категория в съответните таблици в този работен лист. Общите приходи се изчисляват автоматично. Полезни инструкции как да използвате този работен лист, можете да намерите в клетките в тази колона. Натиснете стрелката надолу, за да започнете.
A2: Името на събитието се актуализира автоматично в клетката вдясно. | B2: =Разходи!B2 -> Бюджет за събитие за Име на събитие
A3: Етикетът "Приходи" е в клетка F3. | F3: Приходи
A4: Етикетът "Очаквани" е в клетка F4, а етикетът "Действителни" е в клетка G4. | F4: Очаквани | G4: Действителни
A5: Етикетът "Общо приходи" е в клетка отдясно. Общите очаквани приходи се изчисляват автоматично в клетка F5. Общo действителни приходи и лентата за данни, изобразяваща общите действителни приходи, се актуализират автоматично в клетка G5. | B5: Общо приходи | F5: =SUM(ТаксиЗаВход[[#Totals],[Общо очаквани]],РекламиВПрограмата[[#Totals],[Общо очаквани]],УчастнициВИзложбатаДоставчици[[#Totals],[Общо очаквани]],РазпродажбаНаАртикули[[#Totals],[Общо очаквани]]) -> 1,936.00 лв. | G5: =SUM(ТаксиЗаВход[[#Totals],[Общо действителни]],РекламиВПрограмата[[#Totals],[Общо действителни]],УчастнициВИзложбатаДоставчици[[#Totals],[Общо действителни]],РазпродажбаНаАртикули[[#Totals],[Общо действителни]]) -> 1,831.00 лв.
A6: Етикетът за "Такси за вход" е в клетката вдясно. | B6: Такси за вход
A7: Въведете Очаквани и действителени брой такси за вход с цени на билетите в таблицата, започвайки от клетката вдясно. Очаквани и действителни приходи от таксите за вход се изчисляват автоматично. Следващата инструкция е в клетка A12. | B7: Очаквани | C7: Действителни | D7: Тип | E7: Цена | F7: Общо очаквани | G7: Общо действителни
B8: 300 | C8: 278 | D8: Възрастни @ | E8: 5.00 лв. | F8: =B8*E8 -> 1,500.00 лв. | G8: =C8*E8 -> 1,390.00 лв.
B9: 197 | C9: 195 | D9: Деца @ | E9: 2.00 лв. | F9: =B9*E9 -> 394.00 лв. | G9: =C9*E9 -> 390.00 лв.
B10: 42 | C10: 51 | D10: Други @ | E10: 1.00 лв. | F10: 42.00 лв. | G10: 51.00 лв.
F11: =SUBTOTAL(109,ТаксиЗаВход[Общо очаквани]) -> 1,936.00 лв. | G11: =SUBTOTAL(109,ТаксиЗаВход[Общо действителни]) -> 1,831.00 лв.
A12: Етикетът за "Реклами в програмата" е в клетката вдясно. | B12: Реклами в програмата
A13: Въведете Очаквани и действителни брой реклами в програмата с цени на рекламите в таблицата, започвайки от клетката вдясно. Очаквани и действителни приходи от реклами се изчисляват автоматично. Следващата инструкция е в клетка A18. | B13: Очаквани | C13: Действителни | D13: Тип | E13: Цена | F13: Общо очаквани | G13: Общо действителни
D14: Титулни страници @ | F14: =B14*E14 -> 0.00 лв. | G14: =C14*E14 -> 0.00 лв.
D15: Половин страници @ | F15: =B15*E15 -> 0.00 лв. | G15: =C15*E15 -> 0.00 лв.
D16: Четвърт страници @ | F16: 0.00 лв. | G16: 0.00 лв.
F17: =SUBTOTAL(109,РекламиВПрограмата[Общо очаквани]) -> 0.00 лв. | G17: =SUBTOTAL(109,РекламиВПрограмата[Общо действителни]) -> 0.00 лв.
A18: Етикетът за "Участници в изложбата или доставчици" е в клетката вдясно. | B18: Участници в изложбата/доставчици
A19: Въведете Очаквани и действителни брой участници в изложбата и доставчици и цени за щанд в таблицата, започвайки от клетката вдясно. Очаквани и действителни приходи се изчисляват автоматично. Следващата инструкция е в клетка A24. | B19: Очаквани | C19: Действителни | D19: Тип | E19: Цена | F19: Общо очаквани | G19: Общо действителни
D20: Големи щандове @ | F20: =B20*E20 -> 0.00 лв. | G20: =C20*E20 -> 0.00 лв.
D21: Средни щандове @ | F21: =B21*E21 -> 0.00 лв. | G21: =C21*E21 -> 0.00 лв.
D22: Малки щандове @ | F22: 0.00 лв. | G22: 0.00 лв.
F23: =SUBTOTAL(109,УчастнициВИзложбатаДоставчици[Общо очаквани]) -> 0.00 лв. | G23: =SUBTOTAL(109,УчастнициВИзложбатаДоставчици[Общо действителни]) -> 0.00 лв.
A24: Етикетът за "Разпродажба на артикули" е в клетката вдясно. | B24: Разпродажба на артикули
A25: Въведете Очаквани и действителни брой продадени артикули и цени на артикулите в таблицата, започвайки от клетката вдясно. Очаквани и действителни приходи се изчисляват автоматично. | B25: Очаквани | C25: Действителни | D25: Тип | E25: Цена | F25: Общо очаквани | G25: Общо действителни
D26: Артикули @ | F26: =B26*E26 -> 0.00 лв. | G26: =C26*E26 -> 0.00 лв.
D27: Артикули @ | F27: =B27*E27 -> 0.00 лв. | G27: =C27*E27 -> 0.00 лв.
D28: Артикули @ | F28: 0.00 лв. | G28: 0.00 лв.
D29: Артикули @ | F29: 0.00 лв. | G29: 0.00 лв.
F30: =SUBTOTAL(109,РазпродажбаНаАртикули[Общо очаквани]) -> 0.00 лв. | G30: =SUBTOTAL(109,РазпродажбаНаАртикули[Общо действителни]) -> 0.00 лв.

Sheet Резюме
A1: Резюме за печалбата и загубата, показващи общo приходи и разходи, се актуализират автоматично в този работен лист. Полезни инструкции как да използвате този работен лист, можете да намерите в клетките в тази колона. Натиснете стрелката надолу, за да започнете.
A2: Име на събитие се актуализира автоматично в клетката вдясно. | B2: =Разходи!B2 -> Бюджет за събитие за Име на събитие
A3: Етикетът "Резюме за печалбата и загубата" е в клетка C3. Следващата инструкция е в клетка A5. | C3: Резюме за печалбата и загубата
A5: Таблицата "Общо", която започва от клетката вдясно, се актуализира автоматично. Следващата инструкция е в клетка A9. | B5: Общо | C5: Очаквани | D5: Действителни
B6: Общо приходи | C6: =Приходи!F5 -> 1,936.00 лв. | D6: =Приходи!G5 -> 1,831.00 лв.
B7: Общо разходи | C7: =Разходи!G5 -> 1,145.00 лв. | D7: =Разходи!H5 -> 395.00 лв.
B8: Обща печалба (или загуба) | C8: =C6-C7 -> 791.00 лв. | D8: =D6-D7 -> 1,436.00 лв.
A9: Колонната диаграма с клъстери, показваща сравнение на общo очаквани и действителни приходи и разходи, е в клетката вдясно. | B9: Колонната диаграма с клъстери, показваща сравнение на общo очаквани и действителни приходи и разходи, е в тази клетка.
